bitfinex-derivatives/quotes_SOLF0:USTF0_20250929
["timestamp","ask_amount","ask_price","bid_price","bid_amount"]
[1759151669917,56.22,206.05,205.96,4.3676]
[1759151670122,67.8853,206.14,205.97,10.33818551]
[1759151670314,102.8,206.13,206.01,7.69]
[1759151670514,0.84476271,206.1,206.01,7.69]
[1759151670716,4.3646,206.11,206.01,7.69]
[1759151671113,0.84473196,206.1,206.01,7.69]
[1759151671931,68.74263196,206.1,205.93,7.69]
[1759151672115,0.84473196,206.1,205.97,7.69]
[1759151672616,0.84473196,206.1,205.97,10.33818551]
[1759151673416,0.84473196,206.1,206.0,2.64818551]
[1759151673719,0.84473196,206.1,206.01,7.69]
[1759151674321,0.84473196,206.1,206.01,9.37797676]
[1759151674517,4.365,206.09,206.01,9.37797676]
[1759151675426,4.3655,206.07,205.96,12.0578]
[1759151675619,4.3655,206.07,205.96,7.69]
[1759151675817,1.68797676,206.07,205.97,1.68797676]
[1759151676230,1.68797676,206.07,205.96,7.69]
[1759151676231,0.84473196,206.1,205.98,1.68797676]
[1759151676529,99.46797676,206.09,206.0,1.68797676]
[1759151676929,103.83297676,206.09,206.0,1.68797676]
[1759151677331,122.26,206.08,206.0,1.68797676]
[1759151678035,128.29297676,206.09,206.01,7.69]
[1759151679435,4.3654,206.08,206.01,7.69]
[1759151680228,122.22,206.07,206.01,7.69]
[1759151681128,4.3652,206.09,206.01,7.69]
[1759151681329,35.86,206.08,206.01,7.69]
[1759151683336,63.24,206.08,206.01,9.37797676]
[1759151683534,89.22,206.08,206.01,9.37797676]
[1759151684039,89.22,206.08,206.01,7.69]
[1759151684534,109.74,206.08,206.01,7.69]
[1759151685236,109.74,206.08,206.0,1.68797676]
[1759151685237,1.68797676,206.07,205.98,1.68797676]
[1759151685425,1.68797676,206.07,205.97,1.68797676]
[1759151685630,1.68797676,206.07,205.96,7.69]
[1759151686032,1.68797676,206.03,205.96,7.69]
[1759151686434,1.68797676,206.01,205.91,9.37797676]
[1759151686637,122.18,206.0,205.91,9.37797676]
[1759151687242,4.3673,205.99,205.91,7.69]
[1759151687632,122.18,206.0,205.91,7.69]
[1759151687836,67.8934,206.12,205.97,7.69]
[1759151687837,1.68797676,206.06,205.97,7.69]
[1759151688035,1.68797676,206.09,205.99,7.69]
[1759151688231,122.16,206.07,205.99,9.37797676]
[1759151688842,122.16,206.07,205.99,7.69]
[1759151689139,123.84797676,206.07,205.98,1.68797676]
[1759151689439,4.366,206.05,205.98,1.68797676]
[1759151689641,4.366,206.05,205.98,9.37797676]
[1759151689840,126.526,206.05,205.98,9.37797676]
[1759151691440,122.16,206.05,205.98,9.37797676]
[1759151691935,4.3658,206.06,205.98,9.37797676]
[1759151692242,122.14,206.05,205.98,9.37797676]
[1759151692438,126.506,206.05,205.98,9.37797676]
[1759151693245,2.53270872,206.1,206.0,1.68797676]
[1759151693437,122.14,206.05,206.01,7.69]
[1759151693745,122.14,206.05,206.02,1.68797676]
[1759151694132,122.14,206.05,206.02,9.77797676]
[1759151694737,122.12,206.06,206.02,9.77797676]
[1759151696031,122.12,206.06,206.02,1.68797676]
[1759151696233,122.12,206.06,206.0,1.68797676]
[1759151696945,126.4858,206.06,206.0,1.68797676]
[1759151697244,126.4858,206.06,205.98,12.12360469]
[1759151697438,4.3661,206.04,205.97,4.03360469]
[1759151697643,4.3661,206.04,205.96,13.81158145]
[1759151698148,0.84473196,206.1,206.02,8.09]
[1759151698447,122.94473196,206.1,206.02,9.77797676]
[1759151699143,122.94473196,206.1,206.02,13.81158145]
[1759151699550,127.30953196,206.1,206.02,13.81158145]
[1759151699846,127.30953196,206.1,206.02,12.12360469]
[1759151700049,127.30953196,206.1,206.02,13.81158145]
[1759151700250,5.20953196,206.1,206.02,13.81158145]
[1759151700542,71.76,206.09,206.02,13.81158145]
[1759151700748,76.1252,206.09,206.03,1.68797676]
[1759151701342,4.3654,206.08,206.02,4.03360469]
[1759151701543,122.08,206.09,206.02,5.72158145]
[1759151702047,123.76797676,206.09,206.01,4.03360469]
[1759151702944,122.08,206.09,206.01,5.72158145]
[1759151703150,122.08,206.09,206.02,4.03360469]
[1759151703342,4.3651,206.09,206.02,4.03360469]
[1759151703643,122.08,206.08,206.02,4.03360469]
[1759151703944,126.4454,206.08,206.02,4.03360469]
[1759151704137,126.4454,206.08,206.01,4.03360469]
[1759151704536,4.3656,206.07,206.01,4.03360469]
[1759151705144,1.68797676,206.02,206.01,4.03360469]
[1759151705443,123.74797676,206.02,205.95,4.03360469]
[1759151705636,6.05507676,206.0,205.93,4.03360469]
[1759151705842,6.05507676,206.0,205.92,8.09]
[1759151705843,6.05507676,206.0,205.92,12.12360469]
[1759151706141,6.05507676,206.0,205.9,6.05687676]
[1759151706142,4.3673,205.99,205.91,4.03360469]
[1759151706345,1.68797676,206.0,205.91,4.03360469]
[1759151706645,122.06,206.02,205.91,4.03360469]
[1759151706646,1.68797676,205.98,205.91,4.03360469]
[1759151706845,1.68797676,205.98,205.89,8.09]
[1759151706846,1.68797676,205.98,205.9,4.03360469]
[1759151707042,1.68797676,205.96,205.9,4.03360469]
[1759151707248,1.68797676,205.94,205.85,4.03360469]
[1759151707444,122.06,205.93,205.84,4.03360469]
[1759151707648,122.06,205.93,205.85,5.72158145]
[1759151707850,1.68797676,205.94,205.85,5.72158145]
[1759151708038,100.76,205.93,205.85,5.72158145]
[1759151708346,1.68797676,206.01,205.91,1.68797676]
[1759151708550,1.68797676,206.01,205.91,5.72158145]
[1759151708740,1.68797676,206.0,205.91,5.72158145]
[1759151709047,122.06,205.99,205.91,5.72158145]
[1759151709351,122.06,205.98,205.93,5.72158145]
[1759151709550,359.35467676,206.02,205.94,8.09]
[1759151709738,122.06,206.01,205.94,8.09]
[1759151709941,122.06,206.01,205.96,1.68797676]
[1759151710140,353.3,206.02,205.97,8.09]
[1759151710341,475.36,206.02,205.98,9.77797676]
[1759151711350,475.36,206.02,205.96,4.03360469]
[1759151711850,475.36,206.02,205.95,5.72158145]
[1759151712253,4.3673,205.99,205.95,4.03360469]
[1759151712549,1.68797676,206.0,205.9,4.03360469]
[1759151713247,1.68797676,205.98,205.9,4.03360469]
[1759151713459,122.06,205.97,205.9,4.03360469]
[1759151713650,122.06,205.97,205.92,12.02360469]
[1759151713841,122.06,205.97,205.92,7.99]
[1759151714051,122.06,205.96,205.92,12.02360469]
[1759151714249,122.06,205.96,205.92,7.99]
[1759151714650,122.06,205.96,205.91,4.03360469]
[1759151714852,122.06,205.96,205.9,4.03360469]
[1759151715251,421.2241,206.02,205.9,4.03360469]
[1759151715252,353.3,206.02,205.91,9.67797676]
[1759151715454,123.74797676,206.01,205.93,1.68797676]
[1759151715651,353.3,206.02,205.94,4.03360469]
[1759151715854,122.06,206.0,205.94,4.03360469]
[1759151716054,122.06,206.0,205.95,4.03360469]
[1759151716251,353.3,206.02,205.95,4.03360469]
[1759151716550,122.06,206.01,205.96,4.03360469]
[1759151716757,122.06,206.0,205.96,4.03360469]
[1759151717658,67.9032,206.09,205.96,4.03360469]
[1759151717860,1.68797676,206.05,205.97,9.67797676]
[1759151718059,1.68797676,206.05,205.97,13.71158145]
[1759151718360,1.68797676,206.05,205.95,4.3678]
[1759151718361,355.91270872,206.1,206.0,7.99]
[1759151718556,122.06,206.09,206.0,12.02360469]
[1759151718756,4.365,206.09,206.0,12.02360469]
[1759151718954,122.06,206.08,206.01,4.03360469]
[1759151719156,4.365,206.09,206.02,4.03360469]
[1759151719461,122.06,206.08,206.02,4.03360469]
[1759151719851,4.365,206.09,206.03,5.72158145]
[1759151720051,354.22473196,206.1,206.04,7.99]
[1759151720248,122.06,206.09,206.03,13.71158145]
[1759151720450,122.06,206.09,206.03,9.67797676]
[1759151720651,122.06,206.09,206.04,12.02360469]
[1759151721256,122.06,206.09,206.04,4.03360469]
[1759151721560,122.06,206.09,206.02,1.68797676]
[1759151721760,123.74797676,206.09,206.02,4.03360469]
[1759151721958,4.3659,206.05,206.01,4.03360469]
[1759151722156,4.3659,206.05,205.99,7.99]
[1759151722157,126.4059,206.05,206.0,4.03360469]
[1759151722360,122.04,206.05,206.0,4.03360469]
[1759151722561,122.04,206.05,206.01,12.02360469]
[1759151722761,122.04,206.05,206.02,7.99]
[1759151722965,122.04,206.05,206.0,12.02360469]
[1759151723170,4.3654,206.08,206.01,7.99]
[1759151723370,107.44,206.07,206.01,12.02360469]
[1759151723672,107.44,206.07,206.01,7.99]
[1759151724069,107.44,206.07,206.01,12.02360469]
[1759151724270,122.04,206.07,206.01,12.02360469]
[1759151724470,122.04,206.07,206.03,7.7]
[1759151725275,122.04,206.07,206.03,11.73360469]
[1759151725670,4.365,206.1,206.03,11.73360469]
[1759151725867,126.3852,206.09,206.03,4.03360469]
[1759151726068,126.3852,206.09,206.01,4.03360469]
[1759151726579,122.02,206.09,206.03,4.03360469]
[1759151727264,4.3648,206.11,206.03,4.03360469]
[1759151727265,122.02,206.08,206.03,4.03360469]
[1759151727467,122.02,206.08,206.04,7.7]
[1759151728472,122.02,206.1,206.04,11.73360469]
[1759151729273,122.02,206.1,206.04,16.09950469]
[1759151729470,0.8447217,206.12,206.05,4.03360469]
[1759151729471,122.02,206.12,206.05,4.03360469]
[1759151729971,122.02,206.13,206.06,4.03360469]
[1759151730169,122.02,206.13,206.07,4.03360469]
[1759151730369,4.3637,206.16,206.06,4.06499757]
[1759151730566,122.02,206.15,206.06,4.06499757]
[1759151730764,122.86456795,206.15,206.06,4.06499757]
[1759151731168,122.86456795,206.15,206.05,4.06499757]
[1759151731376,122.86456795,206.15,206.02,5.42149453]
[1759151731377,67.891,206.12,206.02,4.06499757]
[1759151732268,67.891,206.12,206.01,4.06499757]
[1759151732476,4.3654,206.08,206.01,4.06499757]
[1759151732674,122.0,206.08,206.01,4.06499757]
[1759151732874,122.0,206.08,205.99,4.06499757]
[1759151733064,122.0,206.08,205.98,4.06499757]
[1759151733673,126.3655,206.07,205.98,4.06499757]
[1759151733874,126.3655,206.07,205.99,4.06499757]
[1759151735173,4.3658,206.06,205.98,4.06499757]
[1759151735772,122.0,206.07,205.97,4.06499757]
[1759151735972,122.0,206.07,205.95,4.06499757]
[1759151736177,67.9121,206.06,205.95,4.06499757]
[1759151736775,4.3663,206.03,205.95,4.06499757]
[1759151737083,122.0,206.02,205.95,4.06499757]
[1759151737778,4.3669,206.01,205.95,4.06499757]
[1759151737976,122.0,206.02,205.92,4.06499757]
[1759151738379,122.0,206.02,205.93,4.06499757]
[1759151738776,4.3669,206.01,205.93,4.06499757]
[1759151739986,4.3663,206.03,205.93,4.06499757]
[1759151740282,52.76,206.0,205.93,4.06499757]
[1759151740871,4.3667,206.01,205.93,4.06499757]
[1759151740872,84.3867,206.01,205.93,4.06499757]
[1759151743183,80.02,206.01,205.93,4.06499757]
[1759151743378,67.9047,206.08,205.93,4.06499757]
[1759151743679,67.9047,206.08,205.91,7.7]
[1759151743680,119.42,206.07,205.94,4.06499757]
[1759151743886,4.3665,206.03,205.94,4.06499757]
[1759151744980,4.3659,206.05,205.95,11.76499757]
[1759151745188,104.1,206.04,205.97,4.06499757]
[1759151745484,126.3659,206.05,205.97,4.06499757]
[1759151746287,4.3663,206.03,205.96,4.06499757]
[1759151746477,4.3663,206.03,205.95,14.70708187]
[1759151746478,4.3663,206.03,205.95,11.76499757]
[1759151746881,4.3667,206.01,205.95,11.76499757]
[1759151747087,4.3667,206.01,205.95,4.06499757]
[1759151747986,4.3663,206.03,205.95,4.06499757]
[1759151748792,121.98,206.03,205.95,4.06499757]
[1759151749182,121.98,206.03,205.96,4.3678]
[1759151749486,124.61918187,206.03,205.92,4.06499757]
[1759151749785,124.61918187,206.03,205.91,4.06499757]
[1759151750184,4.3676,205.97,205.91,4.06499757]
[1759151750390,67.9246,206.02,205.9,11.76499757]
[1759151750586,70.56378187,206.02,205.9,11.76499757]
[1759151750790,4.3672,205.99,205.91,4.06499757]
[1759151751591,81.7272,205.99,205.91,4.06499757]
[1759151751889,4.3675,205.98,205.91,4.06499757]
[1759151752390,4.3677,205.97,205.9,11.76499757]
[1759151752589,4.3677,205.97,205.9,4.06499757]
[1759151752890,4.3677,205.97,205.9,11.76499757]
[1759151753386,77.36,205.99,205.91,4.06499757]
[1759151753591,4.3669,206.01,205.92,11.76499757]
[1759151753799,121.98,206.0,205.93,4.06499757]
[1759151753989,121.98,206.0,205.92,7.7]
[1759151753990,4.3669,206.01,205.92,11.76499757]
[1759151754180,126.3469,206.01,205.93,4.06499757]
[1759151754685,4.3671,206.0,205.93,4.06499757]
[1759151755890,4.3666,206.02,205.94,4.06499757]
[1759151756192,126.3466,206.02,205.94,4.06499757]
[1759151756893,4.3666,206.02,205.95,7.89]
[1759151757192,126.3461,206.04,205.95,7.89]
[1759151757388,126.3461,206.04,205.95,11.95499757]
[1759151757688,4.3661,206.04,205.96,4.3676]
[1759151757895,120.06,206.07,205.97,10.52918187]
[1759151758385,120.06,206.07,205.96,4.06499757]
[1759151758386,120.06,206.07,205.96,11.95499757]
[1759151758590,67.9112,206.06,205.96,7.89]
[1759151758791,70.55038187,206.06,205.96,7.89]
[1759151759695,4.3667,206.02,205.96,7.89]
[1759151760294,4.3667,206.02,205.95,4.06499757]
[1759151762493,4.3667,206.02,205.96,4.06499757]
[1759151763497,126.3261,206.04,205.97,4.06499757]
[1759151763896,4.3661,206.04,205.97,4.06499757]
[1759151764197,4.3661,206.04,205.97,11.95499757]
[1759151764497,119.76,206.05,205.97,11.95499757]
[1759151765704,4.3661,206.04,205.97,11.95499757]
[1759151769402,121.96,206.05,205.97,11.95499757]
[1759151770009,126.326,206.05,205.97,11.95499757]
[1759151770200,126.326,206.05,205.98,4.06499757]
[1759151771005,126.326,206.05,205.98,8.43219757]
[1759151772204,126.326,206.05,205.98,4.06499757]
[1759151772509,126.326,206.05,205.93,4.06499757]
[1759151772510,67.9285,206.01,205.93,4.06499757]
[1759151772708,67.921,206.03,205.93,4.06499757]
[1759151772903,4.3673,205.99,205.93,4.06499757]
[1759151773108,121.92,205.98,205.93,4.06499757]
[1759151773304,121.92,205.98,205.92,4.06499757]
[1759151774407,121.92,205.98,205.93,4.06499757]
[1759151774909,121.92,205.98,205.94,7.79]
[1759151775207,121.92,206.0,205.94,11.85499757]
[1759151775402,121.92,206.02,205.96,8.43259757]
[1759151775608,121.92,206.02,205.98,7.79]
[1759151776313,121.92,206.02,205.97,4.06499757]
[1759151776610,121.92,206.02,205.96,4.06499757]
[1759151776912,121.92,206.03,205.96,4.06499757]
[1759151777413,121.92,206.03,205.97,4.06499757]
[1759151777805,121.92,206.03,205.98,4.06499757]
[1759151778512,121.92,206.03,205.97,4.06499757]
[1759151779311,4.3662,206.04,205.97,4.06499757]
[1759151779614,67.9012,206.09,205.97,4.06499757]
[1759151779615,67.9079,206.07,205.97,4.06499757]
[1759151779804,87.72,206.06,205.97,4.06499757]
[1759151780617,87.72,206.06,205.98,4.06499757]
[1759151780821,126.266,206.05,205.98,4.06499757]
[1759151782522,4.3662,206.04,205.98,4.06499757]
[1759151782718,2.63890401,206.08,205.98,4.06499757]
[1759151782719,121.9,206.03,205.98,4.06499757]
[1759151783021,4.367,206.0,205.97,4.06499757]
[1759151783522,4.367,206.0,205.96,4.06499757]
[1759151785016,4.367,206.0,205.95,4.06499757]
[1759151785319,4.367,206.0,205.94,4.06499757]
[1759151786018,4.3673,205.99,205.94,4.06499757]
[1759151786321,2.63890401,206.02,205.93,4.06499757]
[1759151786523,4.3675,205.98,205.93,4.06499757]
[1759151787027,121.88,205.97,205.93,4.06499757]
[1759151788929,121.88,205.97,205.92,4.06499757]
[1759151789631,121.88,205.97,205.91,4.06499757]
[1759151789932,2.63890401,205.96,205.88,4.06499757]
[1759151790429,7.00680401,205.96,205.87,4.06499757]
[1759151790627,7.00680401,205.96,205.88,4.06499757]
[1759151791131,4.3681,205.95,205.88,4.06499757]
[1759151791329,2.63890401,205.96,205.88,4.06499757]
[1759151791330,121.86,205.94,205.88,4.06499757]
[1759151792126,121.86,205.94,205.88,8.43439757]
[1759151792625,121.86,205.93,205.89,7.48]
[1759151794537,121.86,205.93,205.87,4.06499757]
[1759151795825,121.86,205.93,205.88,11.54499757]
[1759151796840,121.86,205.93,205.88,7.48]
[1759151797931,121.86,205.93,205.88,4.06499757]
[1759151798132,121.86,205.95,205.89,11.8491]
[1759151798334,1.69038948,206.03,205.94,1.69038948]
[1759151798635,121.86,206.02,205.94,1.69038948]
[1759151799630,121.86,206.02,205.94,6.05848948]
[1759151800037,121.86,206.02,205.94,1.69038948]
[1759151800237,4.3671,206.0,205.94,1.69038948]
[1759151802337,4.3673,205.99,205.94,1.69038948]
[1759151802537,1.69038948,205.97,205.9,4.06499757]
[1759151802736,121.84,205.96,205.89,4.06499757]
[1759151802940,121.84,205.96,205.88,5.75538705]
[1759151803642,4.3681,205.95,205.88,5.75538705]
[1759151804646,121.84,205.96,205.88,10.12478705]
[1759151805445,6.05788948,205.98,205.89,11.8492]
[1759151805639,1.69038948,206.02,205.92,9.17038948]
[1759151805841,16.38018708,206.04,205.94,1.69038948]
[1759151806139,6.05658948,206.04,205.96,1.69038948]
[1759151806438,121.8,206.03,205.96,1.69038948]
[1759151807041,121.8,206.03,205.94,9.17038948]
[1759151807440,121.8,206.03,205.95,1.69038948]
[1759151807842,126.1665,206.03,205.95,1.69038948]
[1759151808349,4.3665,206.03,205.94,11.8481]
[1759151808549,68.26,206.02,205.95,1.69038948]
[1759151808749,4.3667,206.02,205.95,1.69038948]
[1759151808944,1.69038948,206.04,205.94,7.48]
[1759151809149,116.78,206.02,205.94,7.48]
[1759151809544,1.69038948,206.07,205.97,9.17038948]
[1759151809745,121.78,206.04,205.97,9.17038948]
[1759151811249,122.71810048,206.05,205.97,13.23538705]
[1759151811750,122.71810048,206.05,205.98,4.3672]
[1759151813346,122.71810048,206.05,205.97,13.23538705]
[1759151813544,127.08410048,206.05,205.97,11.54499757]
[1759151813845,127.08410048,206.05,205.97,13.23538705]
[1759151814944,122.71810048,206.05,205.97,17.60288705]
[1759151816846,122.71810048,206.05,205.97,15.91249757]
[1759151817053,122.71810048,206.05,205.97,17.60288705]
[1759151818152,122.71810048,206.05,205.98,4.3673]
[1759151819955,357.6849,206.1,206.0,7.7]
[1759151820158,121.7,206.09,206.0,7.7]
[1759151820347,121.7,206.09,206.01,1.69038948]
[1759151820554,4.3652,206.09,206.01,6.05698948]
[1759151820857,121.7,206.08,206.01,4.3666]
[1759151821655,121.7,206.08,205.99,4.06499757]
[1759151821854,1.69038948,206.06,205.96,4.06499757]
[1759151822054,1.69038948,206.06,205.95,5.75538705]
[1759151822255,1.69038948,206.06,205.97,1.69038948]
[1759151823251,6.05628948,206.06,205.97,1.69038948]
[1759151823456,1.69038948,206.06,205.97,1.69038948]
[1759151823758,4.3661,206.05,205.97,1.69038948]
[1759151825359,6.05728948,206.01,205.92,4.06499757]
[1759151825661,1.69038948,206.01,205.92,4.06499757]
[1759151826364,1.69038948,206.01,205.92,8.43349757]
[1759151826661,1.69038948,206.01,205.93,4.06499757]
[1759151827565,121.68,206.02,205.94,4.3681]
[1759151827753,121.68,206.02,205.94,8.43309757]
[1759151828956,67.8872,206.14,205.94,8.43309757]
[1759151828957,6.05628948,206.05,205.96,7.7]
[1759151829155,67.8872,206.14,205.99,1.69038948]
[1759151829465,1.69038948,206.09,205.98,11.76499757]
[1759151829661,1.69038948,206.1,206.0,1.69038948]
[1759151830258,4.3651,206.09,206.0,1.69038948]
[1759151830955,1.69038948,206.1,206.0,1.69038948]
[1759151831161,1.69038948,206.1,206.01,7.7]
[1759151832365,1.69038948,206.11,206.01,7.7]
[1759151832565,1.69038948,206.11,206.02,1.69038948]
[1759151833260,1.69038948,206.11,206.02,6.05678948]
[1759151833465,1.69038948,206.14,206.04,1.69038948]
[1759151833664,121.62,206.13,206.05,7.7]
[1759151834561,121.62,206.13,206.06,4.3655]
[1759151835059,121.62,206.13,206.05,7.7]
[1759151835661,4.3648,206.1,206.05,7.7]
[1759151836061,121.62,206.13,206.05,7.7]
[1759151836261,4.3645,206.12,206.05,7.7]
[1759151838669,121.62,206.13,206.05,9.39038948]
[1759151838870,121.62,206.13,206.05,7.7]
[1759151839066,121.62,206.13,206.05,9.39038948]
[1759151839369,4.364,206.14,206.05,9.39038948]
[1759151839565,121.58,206.14,206.08,7.53]
[1759151839764,0.84456795,206.15,206.08,7.53]
[1759151839962,121.58,206.14,206.08,7.53]
[1759151840967,125.9441,206.14,206.08,7.53]
[1759151843981,125.9441,206.14,206.05,1.69038948]
[1759151844176,1.69038948,206.13,206.04,7.53]
[1759151844575,4.3649,206.1,206.02,1.69038948]
[1759151844881,121.54,206.09,206.02,1.69038948]
[1759151845083,121.54,206.08,206.02,1.69038948]
[1759151845879,121.54,206.08,206.0,9.73038948]
[1759151846084,121.54,206.08,206.02,1.69038948]
[1759151846582,121.54,206.08,206.0,12.10499757]
[1759151846781,121.54,206.08,206.02,1.69038948]
[1759151846981,4.3643,206.13,206.04,1.69038948]
[1759151847182,121.52,206.12,206.04,9.73038948]
[1759151847582,121.52,206.12,206.02,1.69038948]
[1759151848280,4.3649,206.1,206.02,6.05678948]
[1759151848476,121.52,206.12,206.03,8.04]
[1759151849277,127.57488948,206.12,206.04,4.3659]
[1759151849885,127.57488948,206.12,206.03,9.73038948]
[1759151850481,4.3647,206.11,206.03,9.73038948]
[1759151850689,1.69038948,206.1,206.01,5.75538705]
[1759151850887,4.3652,206.09,206.01,5.75538705]
[1759151851878,4.3652,206.09,206.01,13.79538705]
[1759151852079,125.8652,206.09,206.01,13.79538705]
[1759151853389,125.8652,206.09,206.02,4.06499757]
[1759151853579,125.8652,206.09,206.01,9.73038948]
[1759151853781,125.8652,206.09,206.01,13.79538705]
[1759151854179,125.8652,206.09,206.01,12.10499757]
[1759151856596,4.3653,206.08,206.0,4.06499757]
[1759151857390,121.48,206.08,206.0,12.10499757]
[1759151858293,124.11725841,206.08,205.99,4.06499757]
[1759151859092,4.366,206.05,205.99,4.06499757]
[1759151859388,4.366,206.05,205.98,4.06499757]
[1759151860193,4.366,206.05,205.99,4.06499757]
[1759151862197,4.366,206.05,205.97,8.04]
[1759151862198,4.366,206.05,205.98,4.06499757]
[1759151864299,124.11725841,206.08,205.97,4.06499757]
[1759151864498,124.11725841,206.08,205.96,4.06499757]
[1759151864688,2.63725841,206.08,205.96,4.06499757]
[1759151864893,4.3664,206.03,205.97,4.06499757]
[1759151865090,4.3664,206.03,205.96,4.06499757]
[1759151865598,4.3659,206.05,205.96,4.06499757]
[1759151865794,121.44,206.05,205.98,12.10499757]
[1759151865998,2.63725841,206.11,206.0,4.06499757]
[1759151866300,121.44,206.07,206.01,8.04]
[1759151871100,121.44,206.07,206.01,12.10499757]
[1759151872201,125.8055,206.07,206.01,12.10499757]
[1759151873301,121.38,206.07,206.01,12.10499757]
[1759151875002,121.38,206.07,206.02,4.06499757]
[1759151875204,121.38,206.07,206.02,12.04499757]
[1759151876807,121.38,206.07,206.02,12.06065908]
[1759151878903,4.3653,206.08,206.02,12.06065908]
[1759151879112,4.3653,206.08,206.03,4.08065908]
[1759151879502,4.3653,206.08,206.02,12.06065908]
[1759151879704,4.3653,206.08,206.03,4.08065908]
[1759151880404,121.36,206.09,206.03,12.06065908]
[1759151880604,121.36,206.09,206.0,5.42149453]
[1759151880605,0.84456795,206.15,206.05,7.98]
[1759151880806,0.84456795,206.15,206.07,7.98]
[1759151881008,122.18456795,206.15,206.08,4.08065908]
[1759151881203,0.84456795,206.15,206.08,4.08065908]
[1759151881410,0.84456795,206.15,206.08,8.44575908]
[1759151881609,0.84456795,206.15,206.07,12.06065908]
[1759151882605,5.20836795,206.15,206.08,4.08065908]
[1759151883310,5.20836795,206.15,206.07,12.06065908]
[1759151884411,0.84456795,206.15,206.07,16.42595908]
[1759151885011,0.84456795,206.15,206.07,12.06065908]
[1759151885206,122.14456795,206.15,206.07,12.06065908]
[1759151885712,122.14456795,206.15,206.08,7.98]
[1759151886613,126.50846795,206.15,206.08,7.98]
[1759151887815,4.3641,206.14,206.08,7.98]
[1759151888115,122.14456795,206.15,206.08,7.98]
[1759151888716,122.14456795,206.15,206.08,12.345]
[1759151888908,121.26,206.14,206.08,7.98]
[1759151889517,121.26,206.14,206.1,7.98]
[1759151889718,121.26,206.14,206.07,4.08065908]
[1759151890018,353.34,206.16,206.06,2.63725841]
[1759151890019,353.34,206.16,206.08,4.08065908]
[1759151890218,353.34,206.16,206.06,75.96925294]
[1759151890219,121.26,206.16,206.1,12.06065908]
[1759151890410,121.26,206.16,206.11,7.98]
[1759151890612,4.3629,206.2,206.13,7.98]
[1759151890817,353.2,206.28,206.17,7.98]
[1759151891114,122.08408654,206.27,206.17,7.98]
[1759151891313,122.08408654,206.27,206.2,7.98]
[1759151891516,122.08408654,206.27,206.15,4.08065908]
[1759151891517,122.08408654,206.27,206.16,7.98]
[1759151891817,4.3624,206.22,206.12,12.06065908]
[1759151892013,121.24,206.21,206.13,4.08065908]
[1759151892317,4.3624,206.22,206.15,4.3637]
[1759151892318,121.24,206.22,206.15,4.3637]
[1759151892713,121.24,206.22,206.14,12.06065908]
[1759151892914,121.24,206.22,206.14,14.69791749]
[1759151893307,121.24,206.22,206.15,7.98]
[1759151893508,121.22,206.24,206.18,7.94]
[1759151893721,4.3615,206.26,206.18,7.94]
[1759151893922,125.5815,206.26,206.18,7.94]
[1759151895113,121.22,206.26,206.19,4.3627]
[1759151895312,121.22,206.26,206.18,7.94]
[1759151896315,125.5815,206.26,206.18,7.94]
[1759151896521,125.5815,206.26,206.17,2.63725841]
[1759151897113,125.5815,206.26,206.18,4.3629]
[1759151897315,121.18,206.25,206.18,4.3629]
[1759151897817,121.18,206.25,206.19,12.3027]
[1759151898122,0.84408654,206.27,206.19,12.3027]
[1759151898421,121.18,206.26,206.19,12.3027]
[1759151899418,121.16,206.26,206.19,7.94]
[1759151899923,121.16,206.25,206.19,7.94]
[1759151900120,121.16,206.25,206.18,4.3629]
[1759151900521,121.16,206.25,206.13,7.94]
[1759151900914,0.84408654,206.27,206.16,7.94]
[1759151901121,4.3624,206.22,206.12,7.94]
[1759151901318,121.14,206.21,206.12,7.94]
[1759151902623,121.14,206.21,206.12,12.3042]